bitfinex/quotes_BTCUSD_20240823
["timestamp","ask_amount","ask_price","bid_price","bid_amount"]
[1724391814874,1.21091176,60974.0,60973.0,0.0009053]
[1724391817691,1.37491576,60974.0,60973.0,0.0009053]
[1724391817895,1.21091176,60974.0,60973.0,0.0009053]
[1724391820744,1.37664891,60974.0,60973.0,0.0009053]
[1724391821048,1.21091176,60974.0,60973.0,0.0009053]
[1724391821197,1.37664891,60974.0,60973.0,0.0009053]
[1724391821395,1.11524891,60974.0,60973.0,0.0009053]
[1724391822233,0.94951176,60974.0,60973.0,0.0009053]
[1724391834594,1.11351576,60974.0,60973.0,0.0009053]
[1724391835983,0.94951176,60974.0,60973.0,0.0009053]
[1724391836211,1.02769542,60974.0,60973.0,0.0009053]
[1724391836806,1.19169942,60974.0,60973.0,0.0009053]
[1724391838578,1.02769542,60974.0,60973.0,0.0009053]
[1724391844414,0.75851176,60974.0,60973.0,0.2863053]
[1724391844656,0.75851176,60974.0,60973.0,0.31502647]
[1724391844812,0.75851176,60974.0,60973.0,0.32773981]
[1724391845371,0.75851176,60974.0,60973.0,0.51723981]
[1724391847722,0.92474672,60974.0,60973.0,0.52147392]
[1724391847909,0.75851176,60974.0,60973.0,0.52147392]
[1724391849173,0.51781792,60974.0,60973.0,0.52247392]
[1724391849372,0.665564,60974.0,60973.0,0.60065758]
[1724391849546,0.51781792,60974.0,60973.0,0.62565758]
[1724391850071,0.64090722,60974.0,60973.0,0.62765758]
[1724391850476,0.51781792,60974.0,60973.0,0.62765758]
[1724391851338,0.50381792,60974.0,60973.0,0.62765758]
[1724391851534,0.60222808,60974.0,60973.0,0.62765758]
[1724391851734,0.61622808,60974.0,60973.0,0.62765758]
[1724391852082,0.56702306,60974.0,60973.0,0.62765758]
[1724391852311,0.57302306,60974.0,60973.0,0.62765758]
[1724391852769,0.52381792,60974.0,60973.0,0.62765758]
[1724391854792,0.52381792,60974.0,60973.0,0.54947392]
[1724391855213,0.57302306,60974.0,60973.0,0.54947392]
[1724391855632,0.57302306,60974.0,60973.0,0.54547392]
[1724391856043,0.57302306,60974.0,60973.0,0.54747392]
[1724391856257,0.52381792,60974.0,60973.0,0.54747392]
[1724391856409,0.52381792,60974.0,60973.0,0.54947392]
[1724391856410,0.57297021,60974.0,60973.0,0.54947392]
[1724391856613,0.52381792,60974.0,60973.0,0.54947392]
[1724391856812,0.52381792,60974.0,60973.0,0.54547392]
[1724391857075,0.52381792,60974.0,60973.0,0.54747392]
[1724391857776,0.52381792,60974.0,60973.0,0.54847392]
[1724391857920,0.52381792,60974.0,60973.0,0.54947392]
[1724391859706,0.53281792,60974.0,60973.0,0.55047392]
[1724391867096,0.53281792,60974.0,60973.0,0.71448092]
[1724391867479,0.53281792,60974.0,60973.0,0.55047392]
[1724391871094,0.53281792,60974.0,60973.0,0.62865758]
[1724391873333,0.53281792,60974.0,60973.0,0.55047392]
[1724391873542,0.53281792,60974.0,60973.0,0.04285275]
[1724391873747,0.53281792,60974.0,60973.0,0.0029053]
[1724391873968,1.14201176,60974.0,60973.0,0.01885542]
[1724391874199,1.21566443,60974.0,60973.0,0.01885542]
[1724391874689,1.14201176,60974.0,60973.0,0.0188337]
[1724391875061,1.21567573,60974.0,60973.0,0.0188337]
[1724391875272,0.93187573,60974.0,60973.0,0.0188337]
[1724391875478,0.93187573,60974.0,60973.0,0.2868337]
[1724391875479,0.58192646,60974.0,60973.0,0.2868337]
[1724391875632,0.53281792,60974.0,60973.0,0.31789331]
[1724391876555,0.53281792,60974.0,60973.0,0.2868337]
[1724391877084,0.53281792,60974.0,60973.0,0.0198337]
[1724391878630,0.53281792,60974.0,60973.0,0.0188337]
[1724391878835,0.98421792,60974.0,60973.0,0.0188337]
[1724391879073,1.05789938,60974.0,60973.0,0.0188337]
[1724391879392,0.98421792,60974.0,60973.0,0.0188337]
[1724391879602,0.98421792,60974.0,60973.0,0.01884756]
[1724391880015,0.98421792,60974.0,60973.0,0.0019053]
[1724391880424,1.08245542,60974.0,60973.0,0.0019053]
[1724391880840,0.98421792,60974.0,60973.0,0.0019053]
[1724391881041,1.22314926,60974.0,60973.0,0.0019053]
[1724391881594,1.12491176,60974.0,60973.0,0.0019053]
[1724391883386,0.85481176,60974.0,60973.0,0.0019053]
[1724391883603,0.9776685,60974.0,60973.0,0.0019053]
[1724391884575,0.7963685,60974.0,60973.0,0.0019053]
[1724391884882,0.7963685,60974.0,60973.0,0.2674053]
[1724391885088,0.7963685,60974.0,60973.0,0.31406387]
[1724391885312,0.7963685,60974.0,60973.0,0.32679357]
[1724391885724,0.7963685,60974.0,60973.0,0.3320368]
[1724391885725,0.53281792,60974.0,60973.0,0.3320368]
[1724391885926,0.63112554,60974.0,60973.0,0.32779357]
[1724391886131,0.53281792,60974.0,60973.0,0.3320368]
[1724391886549,0.60654837,60974.0,60973.0,0.3320368]
[1724391886763,0.53281792,60974.0,60973.0,0.3320368]
[1724391887533,0.5819716,60974.0,60973.0,0.3320368]
[1724391887797,0.53281792,60974.0,60973.0,0.3320368]
[1724391888706,0.60654926,60974.0,60973.0,0.3320368]
[1724391890687,0.53281792,60974.0,60973.0,0.3351368]
[1724391890896,0.60660201,60974.0,60973.0,0.3351368]
[1724391891722,0.53281792,60974.0,60973.0,0.41732046]
[1724391892069,0.53281792,60974.0,60973.0,0.41332046]
[1724391892296,0.53281792,60974.0,60973.0,0.41532046]
[1724391892499,0.53281792,60974.0,60973.0,0.41332046]
[1724391892500,0.63112554,60974.0,60973.0,0.41332046]
[1724391892762,0.63112554,60974.0,60973.0,0.3351368]
[1724391893282,0.63112554,60974.0,60973.0,0.3371368]
[1724391893504,0.63112554,60974.0,60973.0,0.3351368]
[1724391893728,0.6312576,60974.0,60973.0,0.3351368]
[1724391894488,0.53281792,60974.0,60973.0,0.3351368]
[1724391894693,0.53281792,60974.0,60973.0,0.28847823]
[1724391900748,0.53281792,60974.0,60973.0,0.2715053]
[1724391900960,0.53281792,60974.0,60973.0,0.28477608]
[1724391902737,0.53281792,60974.0,60973.0,0.47397608]
[1724391904514,0.53281792,60974.0,60973.0,0.47597608]
[1724391904712,0.65590193,60974.0,60973.0,0.61052375]
[1724391905589,0.65590193,60974.0,60973.0,0.63352375]
[1724391905590,0.53281792,60974.0,60973.0,0.63352375]
[1724391905809,0.6312825,60974.0,60973.0,0.63352375]
[1724391906034,0.53281792,60974.0,60973.0,0.63352375]
[1724391906234,0.53281792,60974.0,60973.0,0.63552375]
[1724391907052,0.58204745,60974.0,60973.0,0.63552375]
[1724391909107,0.60666222,60974.0,60973.0,0.63552375]
[1724391909247,0.53281792,60974.0,60973.0,0.63552375]
[1724391917547,0.53281792,60974.0,60973.0,1.61956173]
[1724391917751,0.53281792,60974.0,60973.0,1.94757573]
[1724391917957,0.53281792,60974.0,60973.0,1.61956173]
[1724391918375,0.52381792,60974.0,60973.0,1.61856173]
[1724391918586,0.50381792,60974.0,60973.0,1.61856173]
[1724391918911,0.50481792,60974.0,60973.0,1.05236109]
[1724391919115,0.51381792,60974.0,60973.0,0.80253075]
[1724391919328,0.51281792,60974.0,60973.0,1.12754475]
[1724391919784,0.51381792,60974.0,60973.0,1.13054475]
[1724391919994,0.51281792,60974.0,60973.0,1.12754475]
[1724391920372,0.50381792,60974.0,60973.0,1.12654475]
[1724391920776,0.50481792,60974.0,60973.0,1.13554475]
[1724391921142,0.50481792,60974.0,60973.0,1.12654475]
[1724391921329,0.50481792,60974.0,60973.0,1.13154475]
[1724391921531,0.50481792,60974.0,60973.0,1.13454475]
[1724391921720,0.50381792,60974.0,60973.0,1.12954475]
[1724391921874,0.50481792,60974.0,60973.0,1.13454475]
[1724391923671,0.50481792,60974.0,60973.0,1.46255875]
[1724391929155,0.50481792,60974.0,60973.0,1.62656173]
[1724391930361,0.50481792,60974.0,60973.0,1.63396937]
[1724391931528,0.50481792,60974.0,60973.0,1.62956742]
[1724391932450,0.50481792,60974.0,60973.0,1.55138376]
[1724391932648,0.50481792,60974.0,60973.0,1.62215978]
[1724391933832,0.50481792,60974.0,60973.0,1.6304054]
[1724391934592,0.50481792,60974.0,60973.0,1.9584194]
[1724391936575,0.50481792,60974.0,60973.0,1.9624194]
[1724391936803,0.46745129,60974.0,60973.0,1.9624194]
[1724391937651,0.000823,60980.0,60979.0,1.619633]
[1724391937853,0.000823,60980.0,60979.0,1.98481964]
[1724391938053,0.02654602,60980.0,60979.0,1.99368148]
[1724391939414,0.02754602,60980.0,60979.0,2.00468148]
[1724391939666,0.02754602,60980.0,60979.0,2.16666026]
[1724391940229,0.02654602,60980.0,60979.0,2.15766026]
[1724391940488,0.02654602,60980.0,60979.0,2.16566026]
[1724391940654,0.02754602,60980.0,60979.0,2.16566026]
[1724391941088,0.02754602,60980.0,60979.0,2.15766026]
[1724391941089,0.02654602,60980.0,60979.0,2.15766026]
[1724391941391,0.02854602,60980.0,60979.0,2.17766026]
[1724391942561,0.02754602,60980.0,60979.0,2.16966026]
[1724391942979,0.02754602,60980.0,60979.0,2.17866026]
[1724391942980,0.02854602,60980.0,60979.0,2.17866026]
[1724391945473,0.02854602,60980.0,60979.0,0.9285436]
[1724391945680,0.21934602,60980.0,60979.0,0.03086184]
[1724391945894,0.21934602,60980.0,60979.0,0.022]
[1724391946102,0.21934602,60980.0,60979.0,0.04410919]
[1724391946480,0.21834602,60980.0,60979.0,0.03510919]
[1724391946633,0.21834602,60980.0,60979.0,0.04683848]
[1724391947020,0.22134602,60980.0,60979.0,0.04683848]
[1724391947630,0.21734602,60980.0,60979.0,0.03483848]
[1724391947802,0.21734602,60980.0,60979.0,0.06283848]
[1724391948012,0.21734602,60980.0,60979.0,0.03972929]
[1724391948185,0.21734602,60980.0,60979.0,0.05983848]
[1724391948383,0.21734602,60980.0,60979.0,0.06083848]
[1724391948903,0.22034602,60980.0,60979.0,0.06083848]
[1724391949315,0.22034602,60980.0,60979.0,0.05883848]
[1724391949493,0.71231602,60980.0,60979.0,0.05883848]
[1724391949683,0.71231602,60980.0,60979.0,0.03872929]
[1724391950917,0.71231602,60980.0,60979.0,0.04072929]
[1724391951991,0.71231602,60980.0,60979.0,0.03672929]
[1724391952183,0.71231602,60980.0,60979.0,0.03872929]
[1724391953126,0.71231602,60980.0,60979.0,0.04072929]
[1724391954135,0.52151602,60980.0,60979.0,0.04072929]
[1724391954390,0.52151602,60980.0,60979.0,0.31672929]
[1724391954603,0.52151602,60980.0,60979.0,0.33883848]
[1724391957836,0.52151602,60980.0,60979.0,0.05110919]
[1724391958006,0.52151602,60980.0,60979.0,0.12929285]
[1724391958210,0.52151602,60980.0,60979.0,0.10718366]
[1724391958414,0.52151602,60980.0,60979.0,0.12935912]
[1724391961966,0.71181602,60980.0,60979.0,0.12535912]
[1724391962389,0.71181602,60980.0,60979.0,0.025]
[1724391963435,1.03926621,60980.0,60979.0,0.025]
[1724391963607,0.99011602,60980.0,60979.0,0.025]
[1724391963781,1.06384131,60980.0,60979.0,0.002]
[1724391963942,1.06384131,60980.0,60979.0,0.025]
[1724391964973,1.06384131,60980.0,60979.0,0.029]
[1724391965332,1.06384131,60980.0,60979.0,0.0398089]
[1724391965333,0.71181602,60980.0,60979.0,0.0398089]
[1724391966118,0.71181602,60980.0,60979.0,0.3033089]
[1724391966119,0.52151602,60980.0,60979.0,0.3033089]
[1724391966315,0.52151602,60980.0,60979.0,0.32548209]
[1724391968078,0.52151602,60980.0,60979.0,0.51338209]
[1724391973322,0.52151602,60980.0,60979.0,0.67737209]
[1724391974120,0.52151602,60980.0,60979.0,0.51338209]
[1724391975074,0.52151602,60980.0,60979.0,0.84137507]
[1724391978049,0.52151602,60980.0,60979.0,1.16935607]
[1724391982971,0.52151602,60980.0,60979.0,1.49833707]
[1724391983415,0.52151602,60980.0,60979.0,1.84425408]
[1724391984318,0.51851602,60980.0,60979.0,1.84425408]
[1724391984453,0.51851602,60980.0,60979.0,1.84725408]
[1724391985055,0.51851602,60980.0,60979.0,1.84625408]
[1724391986604,0.51951602,60980.0,60979.0,1.85325408]
[1724391987774,0.51951602,60980.0,60979.0,1.85326416]
[1724391991624,0.51951602,60980.0,60979.0,1.52428316]
[1724391992028,0.51951602,60980.0,60979.0,1.52528316]
[1724391995537,0.51951602,60980.0,60979.0,1.19730216]
[1724391996343,0.51951602,60980.0,60979.0,1.00840216]
[1724391996546,0.51951602,60980.0,60979.0,0.23498507]
[1724391996773,0.51951602,60980.0,60979.0,0.39897507]
[1724391997528,0.51926795,60980.0,60979.0,0.39897507]
[1724391999053,0.51926795,60980.0,60979.0,0.23498507]
[1724391999292,0.51926795,60980.0,60979.0,0.39897507]
[1724392006404,0.51926795,60980.0,60979.0,0.23498507]
[1724392007535,0.97996795,60980.0,60979.0,0.03717319]
[1724392007744,1.02914222,60980.0,60979.0,0.03717319]
[1724392007945,0.97996795,60980.0,60979.0,0.015]
[1724392008465,0.97996795,60980.0,60979.0,0.012]
[1724392008664,0.97896795,60980.0,60979.0,0.001]
[1724392009969,1.05272936,60980.0,60979.0,0.001]
[1724392010335,1.05372936,60980.0,60979.0,0.003]
[1724392010512,1.05372936,60980.0,60979.0,0.028]
[1724392010707,1.05272936,60980.0,60979.0,0.028]
[1724392010941,1.05272936,60980.0,60979.0,0.029]
[1724392011151,1.05572936,60980.0,60979.0,0.025]
[1724392011487,1.05572936,60980.0,60979.0,0.0358089]
[1724392011715,1.05572936,60980.0,60979.0,0.0378089]
[1724392011912,0.98196795,60980.0,60979.0,0.0378089]
[1724392013280,0.98196795,60980.0,60979.0,0.0398089]
[1724392013411,0.98196795,60980.0,60979.0,0.11799256]
[1724392013618,0.98196795,60980.0,60979.0,0.10718366]
[1724392013829,1.03116158,60980.0,60979.0,0.10718366]
[1724392015020,0.75066158,60980.0,60979.0,0.10718366]
[1724392015373,0.75066158,60980.0,60979.0,0.12936305]
[1724392016132,0.75066158,60980.0,60979.0,0.10718366]
[1724392016936,0.75066158,60980.0,60979.0,0.12936088]
[1724392017338,0.75066158,60980.0,60979.0,0.13026618]
[1724392018157,0.75066158,60980.0,60979.0,0.10808896]
[1724392019179,0.70146795,60980.0,60979.0,0.10808896]
[1724392020472,0.70146795,60980.0,60979.0,0.11898839]
[1724392023510,0.70146795,60980.0,60979.0,0.0259053]
[1724392027360,1.02733592,60980.0,60979.0,0.0259053]
[1724392027583,0.97816795,60980.0,60979.0,0.0259053]
[1724392027816,1.05192009,60980.0,60979.0,0.0259053]
[1724392028302,1.05192009,60980.0,60979.0,0.0279053]
[1724392028303,0.97816795,60980.0,60979.0,0.0279053]
[1724392028573,0.57043384,60980.0,60979.0,0.10608896]
[1724392028784,0.57043384,60980.0,60979.0,0.37648839]
[1724392028785,0.52126795,60980.0,60979.0,0.37648839]
[1724392028994,0.52126795,60980.0,60979.0,0.37848839]
[1724392029194,0.52126795,60980.0,60979.0,0.40066887]
[1724392033645,0.70876795,60980.0,60979.0,0.13916887]
[1724392034460,0.52126795,60980.0,60979.0,0.40286887]
[1724392035094,0.52126795,60980.0,60979.0,0.40486887]
[1724392035562,0.52126795,60980.0,60979.0,0.39599287]
[1724392038444,0.52126795,60980.0,60979.0,0.88796387]
[1724392038863,0.52126795,60980.0,60979.0,0.89682594]
[1724392039851,0.52126795,60980.0,60979.0,0.56884494]
[1724392040329,0.52126795,60980.0,60979.0,0.40485494]
[1724392042952,0.52126795,60980.0,60979.0,0.56884494]
[1724392043222,0.52126795,60980.0,60979.0,0.40485494]
[1724392043595,0.52126795,60980.0,60979.0,0.56884494]
[1724392045092,0.52126795,60980.0,60979.0,0.40485494]
[1724392047459,0.52126795,60980.0,60979.0,0.39395551]
[1724392047662,0.52126795,60980.0,60979.0,0.13025551]
[1724392048058,0.57046076,60980.0,60979.0,0.13025551]
[1724392049515,0.52126795,60980.0,60979.0,0.13025551]
[1724392053112,0.57049449,60980.0,60979.0,0.13025551]
[1724392054586,0.57049449,60980.0,60979.0,0.20497139]
[1724392055264,0.57049449,60980.0,60979.0,0.13025551]
[1724392055878,0.52126795,60980.0,60979.0,0.13025551]
[1724392058291,0.57046236,60980.0,60979.0,0.13025551]
[1724392061453,0.57046236,60980.0,60979.0,0.1194557]
[1724392061681,0.52126795,60980.0,60979.0,0.1194557]
[1724392062091,0.52126795,60980.0,60979.0,0.04127204]
[1724392062300,0.52126795,60980.0,60979.0,0.03727204]
[1724392062511,0.96536795,60980.0,60979.0,0.01427204]
[1724392062716,1.08835397,60980.0,60979.0,0.0029053]
[1724392062943,0.96536795,60980.0,60979.0,0.0029053]
[1724392063961,0.96536795,60980.0,60979.0,0.0259053]
[1724392065346,0.99109492,60980.0,60979.0,0.0259053]
[1724392068431,1.11388324,60980.0,60979.0,0.0259053]
[1724392069092,0.99109492,60980.0,60979.0,0.0259053]
[1724392069297,1.11390067,60980.0,60979.0,0.0259053]
[1724392070351,1.11390067,60980.0,60979.0,0.0029053]
[1724392070557,0.99109492,60980.0,60979.0,0.0019053]
[1724392070754,0.99109492,60980.0,60979.0,0.0029053]
[1724392071343,0.99109492,60980.0,60979.0,0.0019053]
[1724392071665,0.99109492,60980.0,60979.0,0.0029053]
[1724392072066,0.99109492,60980.0,60979.0,0.0019053]
[1724392073606,0.99109492,60980.0,60979.0,0.0029053]
[1724392075880,1.1309819,60980.0,60979.0,0.0019053]
[1724392078027,0.73089492,60980.0,60979.0,0.0029053]
[1724392078227,0.73089492,60980.0,60979.0,0.04186347]
[1724392078449,0.73089492,60980.0,60979.0,0.04386347]
[1724392078654,0.54699492,60980.0,60979.0,0.04386347]
[1724392078862,0.64388955,60980.0,60979.0,0.06686347]
[1724392079014,0.64388955,60980.0,60979.0,0.52976347]
[1724392079420,0.52126795,60980.0,60979.0,0.52976347]
[1724392079620,0.64387997,60980.0,60979.0,0.52976347]
[1724392080117,0.52126795,60980.0,60979.0,0.34676347]
[1724392080536,0.52126795,60980.0,60979.0,0.03728241]
[1724392082449,0.78746795,60980.0,60979.0,0.01428241]
[1724392083447,0.52126795,60980.0,60979.0,0.01428241]
[1724392083618,0.52126795,60980.0,60979.0,0.01628241]
[1724392083799,0.61928978,60980.0,60979.0,0.01628241]
[1724392084005,0.61928978,60980.0,60979.0,0.01428241]
[1724392084227,0.61928908,60980.0,60979.0,0.01428241]
[1724392084627,0.52126795,60980.0,60979.0,0.01428241]
[1724392086389,0.52126795,60980.0,60979.0,0.01328241]
[1724392086390,1.10745493,60980.0,60979.0,0.01328241]
[1724392086703,0.84445493,60980.0,60979.0,0.0019053]
[1724392087442,0.52126795,60980.0,60979.0,0.0029053]
[1724392087787,0.52126795,60980.0,60979.0,0.01329613]
[1724392087967,0.64387997,60980.0,60979.0,0.01429613]
[1724392088211,0.64388189,60980.0,60979.0,0.01429613]
[1724392088604,0.52126795,60980.0,60979.0,0.01429613]
[1724392090322,0.52126795,60980.0,60979.0,0.01329613]
[1724392090601,0.52126795,60980.0,60979.0,0.01429613]
[1724392091609,0.52126795,60980.0,60979.0,0.01329613]
[1724392092010,0.52126795,60980.0,60979.0,0.01429613]
[1724392094118,0.52060757,60980.0,60979.0,0.01429613]
[1724392094744,0.52060757,60980.0,60979.0,0.27499613]
[1724392094950,0.61882312,60980.0,60979.0,0.34506627]
[1724392095374,0.59427004,60980.0,60979.0,0.34706627]
[1724392097017,0.59427668,60980.0,60979.0,0.34706627]
[1724392097417,0.59509968,60980.0,60979.0,0.34706627]
[1724392097623,0.52143057,60980.0,60979.0,0.34706627]
[1724392097775,0.52143057,60980.0,60979.0,0.42524993]
[1724392097977,0.52143057,60980.0,60979.0,0.61274993]
[1724392099995,0.52143057,60980.0,60979.0,0.77673993]
[1724392101627,0.52143057,60980.0,60979.0,1.10472093]
[1724392102727,0.52143057,60980.0,60979.0,0.77673993]
[1724392102839,0.52143057,60980.0,60979.0,0.69855627]
[1724392103045,0.52143057,60980.0,60979.0,0.29999613]
[1724392103696,0.5951124,60980.0,60979.0,0.29999613]
[1724392105347,0.52143057,60980.0,60979.0,0.29999613]
[1724392105751,0.61967301,60980.0,60979.0,0.29999613]
[1724392106171,0.61967301,60980.0,60979.0,0.2886053]
[1724392106382,0.61967301,60980.0,60979.0,0.29998853]
[1724392106761,0.61967301,60980.0,60979.0,0.57304668]
[1724392107204,0.57058324,60980.0,60979.0,0.57304668]
[1724392107436,0.52143057,60980.0,60979.0,0.65123034]
[1724392107640,0.57058839,60980.0,60979.0,0.65123034]
[1724392107845,0.52143057,60980.0,60979.0,0.65123034]
[1724392108250,0.57059338,60980.0,60979.0,0.65123034]
[1724392108423,0.59515958,60980.0,60979.0,0.65123034]
[1724392109586,0.61973592,60980.0,60979.0,0.65123034]
[1724392111237,0.61973592,60980.0,60979.0,0.65550902]
[1724392111837,0.59522807,60980.0,60979.0,0.65550902]
[1724392116462,0.52143057,60980.0,60979.0,0.65550902]
[1724392117071,0.61973592,60980.0,60979.0,0.65550902]
[1724392117283,0.61973592,60980.0,60979.0,0.45570902]
[1724392119086,0.61973592,60980.0,60979.0,0.52143202]
[1724392120561,0.61973592,60980.0,60979.0,0.44817387]
[1724392121596,0.61981942,60980.0,60979.0,0.44817387]
[1724392125728,0.52143057,60980.0,60979.0,0.44817387]
[1724392126108,0.61983052,60980.0,60979.0,0.44817387]
[1724392126509,0.61983055,60980.0,60979.0,0.44817387]
[1724392127047,0.61983055,60980.0,60979.0,0.52897209]
[1724392127248,0.52143057,60980.0,60979.0,0.52897209]
[1724392129341,0.61987174,60980.0,60979.0,0.89146209]
[1724392129539,0.52143057,60980.0,60979.0,0.89146209]
[1724392129752,0.59525957,60980.0,60979.0,0.89146209]
[1724392130704,0.57065004,60980.0,60979.0,0.89146209]
[1724392130904,0.57064807,60980.0,60979.0,0.89146209]
[1724392131142,0.52143057,60980.0,60979.0,0.89146209]
[1724392131345,0.52143057,60980.0,60979.0,0.72747209]
[1724392132955,0.52143057,60980.0,60979.0,0.89146209]
[1724392133172,0.52143057,60980.0,60979.0,0.72747209]
[1724392135118,0.52143057,60980.0,60979.0,0.89146209]
[1724392135330,0.52143057,60980.0,60979.0,0.72747209]
[1724392137554,0.57063834,60980.0,60979.0,0.72747209]
[1724392138928,0.59524223,60980.0,60979.0,0.89146209]
[1724392139161,0.52143057,60980.0,60979.0,0.89146209]
[1724392139560,0.64557146,60980.0,60979.0,0.89146209]
[1724392140098,0.54715591,60980.0,60979.0,0.89146209]
[1724392140441,0.64557146,60980.0,60979.0,0.72747209]
[1724392140618,0.64562018,60980.0,60979.0,0.72747209]
[1724392144499,0.64564109,60980.0,60979.0,0.72747209]
[1724392144921,0.64564109,60980.0,60979.0,1.38344607]
[1724392145145,0.54715591,60980.0,60979.0,1.71242707]
[1724392145354,0.54715591,60980.0,60979.0,2.04040807]
[1724392145355,0.52143057,60980.0,60979.0,2.04040807]
[1724392145566,0.52143057,60980.0,60979.0,2.03556347]
[1724392145717,0.52143057,60980.0,60979.0,2.03456347]
[1724392145718,0.495793,60980.0,60979.0,2.03456347]
[1724392145918,0.495793,60980.0,60979.0,2.36254447]
[1724392146120,0.492793,60980.0,60979.0,2.46254447]
[1724392146501,0.493793,60980.0,60979.0,2.47254447]
[1724392146706,0.493793,60980.0,60979.0,2.47454447]
[1724392147513,0.493793,60980.0,60979.0,2.47254447]
[1724392147716,0.493793,60980.0,60979.0,2.47654447]
[1724392148871,0.494793,60980.0,60979.0,2.48854447]
[1724392149957,0.494793,60980.0,60979.0,2.49258158]
[1724392159205,0.494793,60980.0,60979.0,2.16460058]
[1724392164737,0.494793,60980.0,60979.0,2.16260058]
[1724392164946,0.494793,60980.0,60979.0,2.16460058]
[1724392165997,0.000824,60992.0,60991.0,1.36857566]
[1724392166204,0.000824,60992.0,60991.0,1.55557864]
[1724392166430,0.000824,60992.0,60991.0,1.57284187]
[1724392167371,0.003824,60992.0,60991.0,1.90175887]
[1724392167503,0.003824,60992.0,60991.0,1.92927343]
[1724392167914,0.000824,60992.0,60991.0,1.92927343]
[1724392168617,0.000824,60992.0,60991.0,2.02927343]
[1724392169026,0.001824,60992.0,60991.0,2.04827343]
[1724392169226,0.001824,60992.0,60991.0,2.03727343]
[1724392169654,0.001824,60992.0,60991.0,2.05027343]
[1724392170238,0.000824,60992.0,60991.0,2.04227343]
[1724392170448,0.000824,60992.0,60991.0,2.05127343]
[1724392171092,0.000824,60992.0,60991.0,2.04227343]
[1724392171576,0.000824,60992.0,60991.0,2.04127343]
[1724392171951,0.000824,60992.0,60991.0,2.05527343]
[1724392189989,0.000824,60992.0,60991.0,2.12096543]
[1724392190394,0.000824,60992.0,60991.0,2.12496543]
[1724392192506,0.000824,60992.0,60991.0,2.1506209]
[1724392192748,0.000824,60992.0,60991.0,2.12496543]
[1724392192859,0.000824,60992.0,60991.0,2.15062092]
[1724392193263,0.000824,60992.0,60991.0,2.47853792]
[1724392193915,0.000824,60992.0,60991.0,2.49084665]
[1724392194417,0.000824,60992.0,60991.0,2.46519096]
[1724392194631,0.000824,60992.0,60991.0,2.49084615]
[1724392194834,0.000824,60992.0,60991.0,2.45288243]
[1724392195243,0.000824,60992.0,60991.0,2.47853739]
[1724392195392,0.000824,60992.0,60991.0,2.50419236]
[1724392196405,0.000824,60992.0,60991.0,2.50419239]
[1724392197524,0.000824,60992.0,60991.0,2.50019239]
[1724392198323,0.000824,60992.0,60991.0,2.47453742]
[1724392198502,0.000824,60992.0,60991.0,2.47653742]
[1724392199066,0.000824,60992.0,60991.0,2.47453742]
[1724392199345,0.000824,60992.0,60991.0,2.47653742]
[1724392199952,0.000824,60992.0,60991.0,2.47853742]
[1724392200719,0.000824,60992.0,60991.0,2.45288243]
[1724392200900,0.000824,60992.0,60991.0,2.47853789]
[1724392206854,0.000824,60992.0,60991.0,2.45288243]
[1724392207059,0.000824,60992.0,60991.0,2.47853778]
[1724392207692,0.000824,60992.0,60991.0,2.29273778]
[1724392209029,0.000824,60992.0,60991.0,2.49083778]
[1724392209396,0.000824,60992.0,60991.0,2.5399411]
[1724392210205,0.000824,60992.0,60991.0,2.49083789]
[1724392210384,0.000824,60992.0,60991.0,2.53994121]
[1724392211200,0.000824,60992.0,60991.0,2.49083789]
[1724392212583,0.000824,60992.0,60991.0,2.48683789]
[1724392213345,0.000824,60992.0,60991.0,1.98328243]
[1724392213754,0.1942,60995.0,60994.0,0.16595]
[1724392213948,0.4587,60997.0,60996.0,0.821725]
[1724392214179,0.4587,60997.0,60996.0,1.10872798]
[1724392214180,0.1942,60997.0,60996.0,1.10872798]
[1724392214426,0.1942,60997.0,60996.0,1.6178029]
[1724392214792,0.1942,60997.0,60996.0,1.6218029]
[1724392215738,0.1942,60997.0,60996.0,1.6328029]
[1724392216259,0.1942,60997.0,60996.0,1.6218029]
[1724392216668,0.1942,60997.0,60996.0,1.6328029]
[1724392216912,0.1942,60997.0,60996.0,1.6408029]
[1724392217343,0.49229154,61007.0,61005.0,0.328841]
[1724392217552,0.49229154,61007.0,61006.0,0.2967012]
[1724392217768,0.04919681,61009.0,61006.0,0.4778103]
[1724392217975,0.50099681,61009.0,61008.0,0.004]
[1724392218170,0.50099681,61009.0,61008.0,0.027]
[1724392218489,0.50099681,61009.0,61008.0,0.04418929]
[1724392218698,0.50099681,61009.0,61008.0,0.12498751]
[1724392219251,0.4518,61009.0,61008.0,0.04418929]
[1724392219461,0.4528,61009.0,61008.0,0.04418929]
[1724392220413,0.4528,61009.0,61008.0,0.04118929]
[1724392220653,0.55119362,61009.0,61008.0,0.04318929]
[1724392220852,0.55119362,61009.0,61008.0,0.026]
[1724392221059,0.4528,61009.0,61008.0,0.04318929]
[1724392221266,0.4528,61009.0,61008.0,0.04518929]
[1724392222807,0.4528,61009.0,61008.0,0.07391889]
[1724392223007,0.453623,61009.0,61008.0,0.04518929]
[1724392223654,0.57661502,61009.0,61008.0,0.04518929]
[1724392224570,0.453623,61009.0,61008.0,0.04518929]
[1724392224978,0.52742081,61009.0,61008.0,0.04518929]
[1724392225377,0.52742081,61009.0,61008.0,0.10670279]
[1724392228841,0.52742081,61009.0,61008.0,0.27061479]
[1724392229040,0.52742081,61009.0,61008.0,0.10670279]
[1724392229453,0.52742081,61009.0,61008.0,0.27061479]
[1724392229654,0.52742081,61009.0,61008.0,0.04518929]
[1724392229879,0.52642081,61009.0,61008.0,0.04518929]
[1724392230089,0.52642081,61009.0,61008.0,0.04618929]
[1724392230489,0.52642081,61009.0,61008.0,0.04518929]
[1724392230718,0.52642081,61009.0,61008.0,0.04718929]
[1724392231870,0.52642081,61009.0,61008.0,0.04518929]
[1724392232114,0.52641763,61009.0,61008.0,0.04518929]
[1724392233156,0.52641763,61009.0,61008.0,0.07391829]
[1724392235142,0.25741763,61009.0,61008.0,0.23783029]
[1724392235974,0.25741763,61009.0,61008.0,0.30351829]
[1724392236378,0.25741763,61009.0,61008.0,0.30451829]
[1724392236716,0.25741763,61009.0,61008.0,0.30351829]
[1724392236858,0.25742408,61009.0,61008.0,0.30351829]
[1724392237076,0.25742408,61009.0,61008.0,0.30651829]
[1724392238146,0.25742408,61009.0,61008.0,0.30351829]
[1724392238582,0.25742408,61009.0,61008.0,0.30551829]
[1724392241273,0.07462408,61009.0,61008.0,0.46952127]
[1724392241483,0.07462408,61009.0,61008.0,0.46752127]
[1724392241681,0.07462408,61009.0,61008.0,1.08524627]
[1724392241990,0.07462408,61009.0,61008.0,1.08824627]
[1724392242229,0.07462408,61009.0,61008.0,1.08524627]
[1724392242397,0.000823,61009.0,61008.0,1.08724627]
[1724392243063,0.196223,61009.0,61008.0,0.79734627]
[1724392243393,0.000823,61009.0,61008.0,0.79734627]
[1724392244870,0.000823,61009.0,61008.0,1.08534627]